fUST/lending_fUST_20250830
["ID","MTS","AMOUNT","RATE_DAILY","PERIOD"]
[382187706,1756539041106,-576.55,0.00021884,2]
[382187707,1756539041115,-480.0,0.00021884,2]
[382187708,1756539041125,-480.0,0.00021884,2]
[382187709,1756539041134,-615.33,0.00021884,2]
[382187710,1756539041144,-480.0,0.00021884,2]
[382187711,1756539041153,-569.81,0.00021884,2]
[382187712,1756539041163,-480.0,0.00021884,2]
[382187713,1756539041172,-480.0,0.00021884,2]
[382187714,1756539041182,-500.0,0.00021884,2]
[382187715,1756539041191,-802.06,0.00021884,2]
[382187716,1756539041200,-1347.91,0.00021884,2]
[382187717,1756539041210,-2762.57,0.00021884,2]
[382187718,1756539041219,-485.40736266,0.00021884,2]
[382187719,1756539041229,-480.0,0.00021884,2]
[382187720,1756539041238,-480.0,0.00021884,2]
[382187721,1756539041247,-1529.44,0.00021884,2]
[382187722,1756539041255,-548.92,0.00021884,2]
[382187723,1756539041263,-573.67,0.00021884,2]
[382187724,1756539041271,-575.57,0.00021884,2]
[382187725,1756539041280,-1145.44,0.00021884,2]
[382187726,1756539041288,-480.0,0.00021884,2]
[382187727,1756539041297,-1351.94,0.00021884,2]
[382187728,1756539041305,-1451.47,0.00021884,2]
[382187729,1756539041314,-480.0,0.00021884,2]
[382187730,1756539041322,-794.97,0.00021884,2]
[382187731,1756539041334,-480.0,0.00021884,2]
[382187732,1756539041344,-1125.95,0.00021884,2]
[382187733,1756539041353,-480.0,0.00021884,2]
[382187734,1756539041362,-480.0,0.00021884,2]
[382187735,1756539041372,-480.0,0.00021884,2]
[382187736,1756539041381,-1327.21,0.00021884,2]
[382187737,1756539041390,-480.0,0.00021884,2]
[382187738,1756539041399,-1319.5,0.00021884,2]
[382187739,1756539041408,-572.31,0.00021884,2]
[382187740,1756539041417,-503.19,0.00021884,2]
[382187741,1756539041426,-480.0,0.00021884,2]
[382187742,1756539041435,-480.0,0.00021884,2]
[382187743,1756539041443,-1725.37,0.00021884,2]
[382187744,1756539041452,-566.97,0.00021884,2]
[382187745,1756539041462,-480.0,0.00021884,2]
[382187746,1756539041470,-480.0,0.00021884,2]
[382187747,1756539041479,-480.0,0.00021884,2]
[382187748,1756539041488,-480.0,0.00021884,2]
[382187749,1756539041497,-480.0,0.00021884,2]
[382187750,1756539041506,-1810.63,0.00021884,2]
[382187751,1756539041515,-1411.63,0.00021884,2]
[382187752,1756539041524,-480.0,0.00021884,2]
[382187753,1756539041533,-1303.29,0.00021884,2]
[382187754,1756539041543,-525.35,0.00021884,2]
[382187755,1756539041552,-480.0,0.00021884,2]
[382187756,1756539041562,-1656.47,0.00021884,2]
[382187757,1756539041571,-480.0,0.00021884,2]
[382187758,1756539041581,-1943.15,0.00021884,2]
[382187759,1756539041590,-480.0,0.00021884,2]
[382187760,1756539041600,-480.0,0.00021884,2]
[382187761,1756539041610,-844.1,0.00021884,2]
[382187762,1756539041619,-480.0,0.00021884,2]
[382187763,1756539041628,-480.0,0.00021884,2]
[382187764,1756539041641,-578.6,0.00021884,2]
[382187765,1756539041650,-715.64,0.00021884,2]
[382187766,1756539041661,-480.0,0.00021884,2]
[382187767,1756539041671,-480.0,0.00021884,2]
[382187768,1756539041681,-480.0,0.00021884,2]
[382187769,1756539041691,-432.20755753,0.00021884,2]
[382187770,1756539041701,-678.91,0.00021884,2]
[382187771,1756539041710,-480.0,0.00021884,2]
[382187772,1756539041719,-500.0,0.00021884,2]
[382187773,1756539041728,-155.51245469,0.00021884,2]
[382187774,1756539041737,-480.0,0.00021884,2]
[382187775,1756539041747,-480.0,0.00021884,2]
[382187776,1756539041756,-480.0,0.00021884,2]
[382187777,1756539041766,-547.89,0.00021884,2]
[382187778,1756539041775,-480.0,0.00021884,2]
[382187779,1756539041784,-480.0,0.00021884,2]
[382187780,1756539041793,-250.0,0.00021885,2]
[382187781,1756539041802,-500.58297378,0.000219,2]
[382187782,1756539041812,-500.0,0.000219,2]
[382187783,1756539041821,-500.0,0.000219,2]
[382187784,1756539041831,-500.0,0.000219,2]
[382187785,1756539041840,-501.74279141,0.000219,2]
[382187786,1756539041850,-501.21865721,0.000219,2]
[382187787,1756539041859,-501.60924757,0.000219,2]
[382187788,1756539041868,-500.0,0.000219,2]
[382187789,1756539041878,-500.0,0.000219,2]
[382187790,1756539041887,-506.84425262,0.000219,2]
[382187791,1756539041896,-500.0,0.000219,2]
[382187792,1756539041906,-500.0,0.00021911,2]
[382187793,1756539041916,-501.19331251,0.00021911,2]
[382187794,1756539041926,-500.0,0.00021911,2]
[382187795,1756539041936,-500.0,0.00021911,2]
[382187796,1756539041945,-503.92401456,0.00021911,2]
[382187797,1756539041955,-200.0,0.00021918,2]
[382187798,1756539041965,-87991.25086256,0.0002199,2]
[382187799,1756539041975,-363.71173105,0.00022053,2]
[382187800,1756539041985,-480.0,0.00022083,2]
[382187801,1756539041994,-1066.62,0.00022083,2]
[382187802,1756539042004,-1258.45,0.00022083,2]
[382187803,1756539042013,-2468.45,0.00022083,2]
[382187804,1756539042022,-2606.69,0.00022083,2]
[382187805,1756539042032,-1349.68,0.00022083,2]
[382187806,1756539042041,-480.0,0.00022083,2]
[382187807,1756539042052,-1011.66,0.00022083,2]
[382187808,1756539042062,-480.0,0.00022083,2]
[382187809,1756539042072,-1831.83,0.00022083,2]
[382187810,1756539042082,-1459.5,0.00022083,2]
[382187811,1756539042091,-715.57,0.00022083,2]
[382187812,1756539042100,-505.84,0.00022084,2]
[382187813,1756539042110,-490.03,0.00022084,2]
[382187814,1756539042120,-480.0,0.00022084,2]
[382187815,1756539042131,-79.73599128,0.00022084,2]
[382187829,1756539046079,-1295.61,0.0002044,2]
[382187830,1756539046089,-480.0,0.00020712,2]
[382187831,1756539046099,-446.97676952,0.00020713,2]
[382187832,1756539049625,161.617006,0.00013699,2]
[382187837,1756539645488,-5000.0,0.00019058,2]
[382187838,1756539645755,-162.826208,0.0001925,2]
[382187839,1756539645841,-1200.0,0.00019454,2]
[382187840,1756539645917,-1200.0,0.00019455,2]
[382187841,1756539645988,-300.0,0.00019455,2]
[382187842,1756539646076,-300.0,0.00019455,2]
[382187843,1756539646170,-300.0,0.00019455,2]
[382187844,1756539646250,-300.0,0.00019455,2]
[382187845,1756539646344,-300.0,0.00019455,2]
[382187846,1756539647127,-0.01,0.00019456,2]
[382187847,1756539647461,-0.02,0.00019456,2]
[382187848,1756539647725,-1712.720578,0.00019456,2]
[382187849,1756539647820,-1712.760578,0.00019456,2]
[382187850,1756539647922,-3425.521156,0.00019456,2]
[382187851,1756539648055,-3148.967688,0.00019456,2]
[382187852,1756539648142,-456.03276227,0.000199,2]
[382187853,1756539648222,-255.9330503,0.00020222,2]
[382187854,1756539648644,-1000.78476543,0.00020259,2]
[382187855,1756539648753,-9999.99,0.00020259,2]
[382187856,1756539648904,-8287.249422,0.00020259,2]
[382187857,1756539648982,-6574.488844,0.00020259,2]
[382187858,1756539649055,-3148.967688,0.00020259,2]
[382187859,1756539649132,-456.03276227,0.00020259,2]
[382187860,1756539649208,-255.9330503,0.00020259,2]
[382187861,1756539649285,-2278.14299886,0.00020259,2]
[382187862,1756539649458,-354.43176796,0.00020259,2]
[382187863,1756539649468,-1416.30934476,0.0002026,2]
[382187864,1756539649478,-457.54556457,0.0002026,2]
[382187865,1756539649488,-1830.18225827,0.0002026,2]
[382187866,1756539649499,-4113.79217102,0.0002026,2]
[382187867,1756539649516,-290.96938484,0.00020339,2]
[382187868,1756539655473,-5000.0,0.00020234,2]
[382187869,1756539655619,-0.01,0.00020438,2]
[382187870,1756539655699,-594.51877979,0.00020438,2]
[382187871,1756539655772,-324.79739637,0.00020438,2]
[382187872,1756539655840,-174.76535981,0.00020438,2]
[382187873,1756539655914,-261.34716842,0.00020438,2]
[382187874,1756539655993,-500.0,0.00020438,2]
[382187875,1756539656083,-500.0,0.00020438,2]
[382187876,1756539656161,-500.0,0.00020438,2]
[382187877,1756539656246,-500.0,0.00020438,2]
[382187878,1756539656333,-500.0,0.00020438,2]
[382187879,1756539656412,-500.0,0.00020438,2]
[382187880,1756539656491,-500.0,0.00020438,2]
[382187881,1756539657298,-417.60777683,0.00020438,2]
[382187882,1756539657375,-500.0,0.00020438,2]
[382187883,1756539657453,-500.0,0.00020438,2]
[382187884,1756539657534,-500.0,0.00020438,2]
[382187885,1756539657607,-500.0,0.00020438,2]
[382187886,1756539657678,-500.0,0.00020438,2]
[382187887,1756539657750,-502.89421305,0.00020438,2]
[382187888,1756539657821,-500.0,0.00020438,2]
[382187889,1756539657892,-500.0,0.00020438,2]
[382187890,1756539657963,-500.0,0.00020438,2]
[382187891,1756539658252,-500.0,0.00020438,2]
[382187892,1756539658328,-500.0,0.00020438,2]
[382187893,1756539658403,-500.0,0.00020438,2]
[382187894,1756539658481,-500.0,0.00020438,2]
[382187895,1756539658556,-500.0,0.00020438,2]
[382187896,1756539658636,-500.0,0.00020438,2]
[382187897,1756539658715,-500.0,0.00020438,2]
[382187898,1756539658794,-500.0,0.00020438,2]
[382187899,1756539658870,-500.0,0.00020438,2]
[382187900,1756539658945,-500.0,0.00020438,2]
[382187901,1756539659313,-500.0,0.00020438,2]
[382187902,1756539659388,-500.0,0.00020438,2]
[382187903,1756539659469,-500.0,0.00020438,2]
[382187904,1756539659546,-500.0,0.00020438,2]
[382187905,1756539659620,-500.0,0.00020438,2]
[382187906,1756539659694,-500.0,0.00020438,2]
[382187907,1756539659772,-500.0,0.00020438,2]
[382187908,1756539659842,-500.0,0.00020438,2]
[382187909,1756539659915,-500.0,0.00020438,2]
[382187910,1756539659986,-500.0,0.00020438,2]
[382187911,1756539660245,-500.0,0.00020438,2]
[382187912,1756539660327,-500.0,0.00020438,2]
[382187913,1756539660403,-500.0,0.00020438,2]
[382187914,1756539660486,-500.0,0.00020438,2]
[382187915,1756539660562,-500.0,0.00020438,2]
[382187916,1756539660633,-500.0,0.00020438,2]
[382187917,1756539660705,-500.0,0.00020438,2]
[382187918,1756539660778,-500.0,0.00020438,2]
[382187919,1756539660852,-500.0,0.00020438,2]
[382187920,1756539660932,-500.0,0.00020438,2]
[382187921,1756539661042,-500.0,0.00020438,2]
[382187922,1756539661121,-615.46653962,0.00020438,2]
[382187923,1756539661201,-500.0,0.00020438,2]
[382187924,1756539661283,-500.0,0.00020438,2]
[382187925,1756539661365,-500.0,0.00020438,2]
[382187926,1756539661439,-500.0,0.00020438,2]
[382187927,1756539661522,-500.0,0.00020438,2]
[382187928,1756539661605,-500.0,0.00020438,2]
[382187929,1756539661684,-500.0,0.00020438,2]
[382187930,1756539661759,-269.07692076,0.00020438,2]
[382187931,1756539661946,-230.92307924,0.00020438,2]
[382187932,1756539662027,-500.0,0.00020438,2]
[382187933,1756539662107,-500.0,0.00020438,2]
[382187934,1756539662378,-500.0,0.00020438,2]
[382187935,1756539662460,-500.0,0.00020438,2]
[382187936,1756539662544,-500.0,0.00020438,2]
[382187937,1756539662623,-500.0,0.00020438,2]
[382187938,1756539662709,-500.0,0.00020438,2]
[382187939,1756539662795,-500.0,0.00020438,2]
[382187940,1756539662886,-500.0,0.00020438,2]
[382187941,1756539662976,-38.16384152,0.00020438,2]
[382187942,1756539663266,-461.83615848,0.00020438,2]
[382187943,1756539663366,-250.0,0.00020438,2]
[382187944,1756539663473,-500.0,0.00020438,2]
[382187945,1756539663579,-500.0,0.00020438,2]
[382187946,1756539663683,-500.0,0.00020438,2]
[382187947,1756539663784,-500.0,0.00020438,2]
[382187948,1756539663880,-500.0,0.00020438,2]
[382187949,1756539663977,-500.0,0.00020438,2]
[382187950,1756539664076,-500.0,0.00020438,2]
[382187951,1756539664176,-400.0,0.00020438,2]
[382187952,1756539664276,-276.33768304,0.00020438,2]
[382187953,1756539664694,-223.66231696,0.00020438,2]
[382187954,1756539664797,-500.0,0.00020438,2]
[382187955,1756539664898,-500.0,0.00020438,2]
[382187956,1756539664993,-500.0,0.00020438,2]
[382187957,1756539665091,-500.0,0.00020438,2]
[382187958,1756539665187,-500.0,0.00020438,2]
[382187959,1756539665287,-500.0,0.00020438,2]
[382187960,1756539665380,-500.0,0.00020438,2]
[382187961,1756539665468,-500.0,0.00020438,2]
[382187962,1756539665557,-500.0,0.00020438,2]
[382187963,1756539665644,-52.68536608,0.00020438,2]
[382187964,1756539673095,-335.3750778,0.00020338,2]
[382187965,1756539673192,-143.99609782,0.00020338,2]
[382187966,1756539673202,-356.00390218,0.00020438,2]
[382187967,1756539673272,-91.31073174,0.00020438,2]
[382187968,1756539673281,-408.68926826,0.00020438,2]
[382187969,1756539673349,-91.31073174,0.00020438,2]
[382187970,1756539673359,-408.68926826,0.00020438,2]
[382187971,1756539715590,-5000.0,0.00020234,2]
[382187972,1756539715759,-0.01,0.00020438,2]
[382187973,1756539715876,-91.30073174,0.00020438,2]
[382187974,1756539715969,-500.0,0.00020438,2]
[382187975,1756539716074,-500.0,0.00020438,2]
[382187976,1756539716180,-590.0,0.00020438,2]
[382187977,1756539716280,-500.0,0.00020438,2]
[382187978,1756539716389,-500.0,0.00020438,2]
[382187979,1756539716495,-500.0,0.00020438,2]
[382187980,1756539716587,-500.0,0.00020438,2]
[382187981,1756539716679,-500.0,0.00020438,2]
[382187982,1756539716772,-500.0,0.00020438,2]
[382187983,1756539716861,-137.40853652,0.00020438,2]
[382187984,1756539717183,-362.59146348,0.00020438,2]
[382187985,1756539717290,-500.0,0.00020438,2]
[382187986,1756539717377,-500.0,0.00020438,2]
[382187987,1756539717473,-500.0,0.00020438,2]
[382187988,1756539717558,-500.0,0.00020438,2]
[382187989,1756539717639,-500.0,0.00020438,2]
[382187990,1756539717725,-500.0,0.00020438,2]
[382187991,1756539717808,-500.0,0.00020438,2]
[382187992,1756539717888,-500.0,0.00020438,2]
[382187993,1756539717974,-500.0,0.00020438,2]
[382187994,1756539718251,-500.0,0.00020438,2]
[382187995,1756539718338,-500.0,0.00020438,2]
[382187996,1756539718420,-500.0,0.00020438,2]
[382187997,1756539718498,-500.0,0.00020438,2]
[382187998,1756539718573,-500.0,0.00020438,2]
[382187999,1756539718648,-500.0,0.00020438,2]
[382188000,1756539718726,-500.0,0.00020438,2]
[382188001,1756539718808,-500.0,0.00020438,2]
[382188002,1756539719237,-500.0,0.00020438,2]
[382188003,1756539719325,-500.0,0.00020438,2]
[382188004,1756539720039,-500.0,0.00020438,2]
[382188005,1756539720130,-500.0,0.00020438,2]
[382188006,1756539720222,-632.10479175,0.00020438,2]
[382188007,1756539720313,-500.0,0.00020438,2]
[382188008,1756539720402,-500.0,0.00020438,2]
[382188009,1756539720494,-659.96163881,0.00020438,2]
[382188010,1756539720578,-659.96163881,0.00020438,2]
[382188011,1756539720660,-659.96163881,0.00020438,2]
[382188012,1756539720743,-116.06894483,0.00020438,2]
[382188013,1756539721172,-543.89269398,0.00020438,2]
[382188014,1756539721260,-659.96163881,0.00020438,2]
[382188015,1756539721347,-659.96163881,0.00020438,2]
[382188016,1756539721437,-659.96163881,0.00020438,2]
[382188017,1756539721530,-659.96163881,0.00020438,2]
[382188018,1756539721619,-659.96163881,0.00020438,2]
[382188019,1756539721711,-659.96163881,0.00020438,2]
[382188020,1756539721803,-332.72330751,0.00020438,2]
[382188021,1756539721899,-327.2383313,0.00020438,2]
[382188022,1756539721980,-659.96163881,0.00020438,2]
[382188023,1756539722069,-659.96163881,0.00020438,2]
[382188024,1756539722160,-659.96163881,0.00020438,2]
[382188025,1756539722247,-659.96163881,0.00020438,2]
[382188026,1756539722328,-659.96163881,0.00020438,2]
[382188027,1756539722412,-659.96163881,0.00020438,2]
[382188028,1756539722502,-659.96163881,0.00020438,2]
[382188029,1756539722898,-659.96163881,0.00020438,2]
[382188030,1756539722989,-659.96163881,0.00020438,2]
[382188031,1756539723083,-659.96163881,0.00020438,2]
[382188032,1756539723180,-659.96163881,0.00020438,2]
[382188033,1756539723281,-659.96163881,0.00020438,2]
[382188034,1756539723380,-659.96163881,0.00020438,2]
[382188035,1756539723477,-659.96163881,0.00020438,2]
[382188036,1756539723576,-100.58541785,0.00020438,2]
[382188037,1756539723958,-559.37622096,0.00020438,2]
[382188038,1756539724053,-659.96163881,0.00020438,2]
[382188039,1756539724150,-659.96163881,0.00020438,2]
[382188040,1756539724246,-659.96163881,0.00020438,2]
[382188041,1756539724526,-659.96163881,0.00020438,2]
[382188042,1756539724616,-659.96163881,0.00020438,2]
[382188043,1756539724707,-659.96163881,0.00020438,2]
[382188044,1756539724799,-301.75625355,0.00020438,2]
[382188045,1756539725273,-358.20538526,0.00020438,2]
[382188046,1756539725363,-500.0,0.00020438,2]
[382188047,1756539725463,-500.0,0.00020438,2]
[382188048,1756539725551,-500.0,0.00020438,2]
[382188049,1756539725638,-500.0,0.00020438,2]
[382188050,1756539725731,-500.0,0.00020438,2]
[382188051,1756539725815,-649.99999999,0.00020438,2]
[382188052,1756539725898,-1474.34442866,0.00020438,2]
[382188053,1756539732745,-440.81982992,0.000199,2]
[382188054,1756539732832,-300.0,0.00020437,2]
[382188055,1756539732918,-1474.34442866,0.00020438,2]
[382188056,1756539733004,-1474.34442866,0.00020438,2]
[382188057,1756539733095,-1146.64819686,0.00020438,2]
[382188058,1756539733452,-327.6962318,0.00020438,2]
[382188059,1756539733546,-1474.34442866,0.00020438,2]
[382188060,1756539733639,-1474.34442866,0.00020438,2]
[382188061,1756539733733,-1474.34442866,0.00020438,2]
[382188062,1756539733997,-1474.34442866,0.00020438,2]
[382188063,1756539734087,-1474.34442866,0.00020438,2]
[382188064,1756539734178,-1474.34442866,0.00020438,2]
[382188065,1756539734283,-1474.34442866,0.00020438,2]
[382188066,1756539734375,-1474.34442866,0.00020438,2]
[382188067,1756539734466,-1474.34442866,0.00020438,2]
[382188068,1756539734569,-1474.34442866,0.00020438,2]
[382188069,1756539734656,-1474.34442866,0.00020438,2]
[382188070,1756539734744,-1474.34442866,0.00020438,2]
[382188071,1756539734850,-1474.34442866,0.00020438,2]
[382188072,1756539734934,-650.0,0.00020438,2]
[382188073,1756539735020,-2421.35564577,0.00020438,2]
[382188074,1756539735228,-2421.35564577,0.00020438,2]
[382188075,1756539735328,-2421.35564577,0.00020438,2]
[382188076,1756539735437,-2421.35564577,0.00020438,2]
[382188077,1756539735536,-2421.35564577,0.00020438,2]
[382188078,1756539735648,-2421.35564577,0.00020438,2]
[382188079,1756539735748,-2421.35564577,0.00020438,2]
[382188080,1756539735944,-2421.35564577,0.00020438,2]
[382188081,1756539736033,-157.29870846,0.00020438,2]
[382188082,1756539739633,-228.25418781,0.00020438,2]
[382188083,1756539739643,-565.26255823,0.00020438,2]
[382188084,1756539739793,-314.58741692,0.00020438,2]
[382188085,1756539739860,-2421.35564577,0.00020438,2]
[382188086,1756539739931,-1541.49567062,0.00020438,2]
[382188087,1756539739941,-879.85997515,0.00020438,2]
[382188088,1756539740016,-314.58741692,0.00020438,2]
[382188089,1756539740091,-185.41258308,0.00020438,2]
[382188090,1756539740100,-500.0,0.00020438,2]
[382188091,1756539740111,-435.0,0.00020438,2]
[382188092,1756539740121,-1300.94306269,0.00020438,2]
[382188093,1756539740273,-5000.0,0.00020438,2]
[382188099,1756539906959,400.0,0.0001701,2]
[382188203,1756540115113,303.63385818,0.000173,6]
[382188238,1756540232093,-5000.0,0.00019054,2]
[382188240,1756540232103,-300.0,0.00019088,2]
[382188242,1756540232112,-300.0,0.00019088,2]
[382188244,1756540232122,-1200.0,0.00019088,2]
[382188246,1756540232131,-300.0,0.00019088,2]
[382188248,1756540232141,-8706.84260769,0.00019089,2]
[382188252,1756540232163,-1293.15739231,0.00019089,2]
[382188254,1756540232173,-1962.90588116,0.00019246,2]
[382188256,1756540232183,-4412.12169438,0.00019246,2]
[382188258,1756540232194,-666.0,0.00019273,2]
[382188260,1756540232203,-488.03474552,0.000199,2]
[382188262,1756540232213,-238.0,0.0002,2]
[382188264,1756540232223,-160.0,0.00020028,2]
[382188266,1756540232232,-1790.32725459,0.00020157,2]
[382188268,1756540232241,-478.0,0.00020256,2]
[382188270,1756540232251,-38511.56568404,0.00020257,2]
[382188331,1756540238237,-11488.43431596,0.00020257,2]
[382188332,1756540238247,-480.0,0.00020258,2]
[382188333,1756540238257,-513.78122569,0.00020258,2]
[382188334,1756540238267,-480.0,0.00020258,2]
[382188335,1756540238276,-480.0,0.00020258,2]
[382188336,1756540238286,-480.0,0.00020258,2]
[382188337,1756540238298,-655.94,0.00020258,2]
[382188338,1756540238308,-480.0,0.00020258,2]
[382188339,1756540238317,-480.0,0.00020258,2]
[382188340,1756540238326,-1679.18,0.00020258,2]
[382188341,1756540238336,-480.0,0.00020258,2]
[382188342,1756540238348,-516.77562934,0.00020258,2]
[382188343,1756540238358,-480.0,0.00020258,2]
[382188344,1756540238368,-480.0,0.00020258,2]
[382188345,1756540238377,-480.0,0.00020258,2]
[382188346,1756540238387,-480.0,0.00020258,2]
[382188347,1756540238397,-480.0,0.00020258,2]
[382188348,1756540238406,-480.0,0.00020258,2]
[382188349,1756540238416,-480.0,0.00020258,2]
[382188350,1756540238427,-480.0,0.00020258,2]
[382188351,1756540238438,-480.0,0.00020258,2]
[382188352,1756540238448,-3246.54,0.00020258,2]
[382188353,1756540238457,-670.99,0.00020258,2]
[382188354,1756540238467,-601.86,0.00020258,2]
[382188355,1756540238477,-480.0,0.00020258,2]
[382188356,1756540238486,-480.0,0.00020258,2]
[382188357,1756540238496,-480.0,0.00020258,2]
[382188358,1756540238506,-480.0,0.00020258,2]
[382188359,1756540238515,-480.0,0.00020258,2]
[382188360,1756540238525,-363.89564432,0.00020258,2]
[382188361,1756540238534,-480.0,0.00020258,2]
[382188362,1756540238544,-480.0,0.00020258,2]
[382188363,1756540238554,-357.12882392,0.00020258,2]
[382188364,1756540238564,-480.0,0.00020258,2]
[382188365,1756540238573,-480.0,0.00020258,2]
[382188366,1756540238583,-480.0,0.00020258,2]
[382188367,1756540238592,-480.0,0.00020258,2]
[382188368,1756540238601,-480.0,0.00020258,2]
[382188369,1756540238611,-480.0,0.00020258,2]
[382188370,1756540238620,-480.0,0.00020258,2]
[382188371,1756540238630,-1432.38,0.00020258,2]
[382188372,1756540238639,-687.27,0.00020258,2]
[382188373,1756540238648,-1325.56,0.00020258,2]
[382188374,1756540238657,-1087.01,0.00020258,2]
[382188375,1756540238668,-480.0,0.00020258,2]
[382188376,1756540238678,-572.22156623,0.00020258,2]
[382188377,1756540238687,-1030.22,0.00020258,2]
[382188378,1756540238696,-480.0,0.00020258,2]
[382188379,1756540238706,-480.0,0.00020258,2]
[382188380,1756540238716,-1619.45,0.00020258,2]
[382188381,1756540238726,-480.0,0.00020258,2]
[382188382,1756540238736,-529.29,0.00020258,2]
[382188383,1756540238745,-480.0,0.00020258,2]
[382188384,1756540238755,-480.0,0.00020258,2]
[382188385,1756540238765,-785.03,0.00020258,2]
[382188386,1756540238774,-480.0,0.00020258,2]
[382188387,1756540238784,-1109.94,0.00020258,2]
[382188388,1756540238793,-480.0,0.00020258,2]
[382188389,1756540238803,-480.0,0.00020258,2]
[382188390,1756540238814,-480.0,0.00020258,2]
[382188391,1756540238823,-480.0,0.00020258,2]
[382188392,1756540238832,-1472.43,0.00020258,2]
[382188393,1756540238842,-480.0,0.00020258,2]
[382188394,1756540238851,-1029.33,0.00020258,2]
[382188395,1756540238861,-480.0,0.00020258,2]
[382188396,1756540238870,-4109.17,0.00020258,2]
[382188397,1756540238880,-480.0,0.00020258,2]
[382188398,1756540238889,-480.0,0.00020258,2]
[382188399,1756540238898,-883.73,0.00020258,2]
[382188400,1756540238908,-480.0,0.00020258,2]
[382188401,1756540238921,-1223.88,0.00020258,2]
[382188402,1756540238930,-1011.92,0.00020258,2]
[382188403,1756540238940,-462.5377883,0.00020258,2]
[382188404,1756540238950,-798.92,0.00020258,2]
[382188405,1756540238959,-480.0,0.00020258,2]
[382188406,1756540238968,-1206.02,0.00020258,2]
[382188407,1756540238978,-480.0,0.00020258,2]
[382188408,1756540238987,-524.62,0.00020258,2]
[382188409,1756540238997,-480.0,0.00020258,2]
[382188410,1756540239007,-2365.6,0.00020258,2]
[382188411,1756540239016,-480.0,0.00020258,2]
[382188412,1756540239025,-480.0,0.00020258,2]
[382188413,1756540239035,-1308.53,0.00020258,2]
[382188414,1756540239044,-480.0,0.00020258,2]
[382188415,1756540239054,-480.0,0.00020258,2]
[382188416,1756540239063,-686.56,0.00020258,2]
[382188417,1756540239072,-2727.37,0.00020258,2]
[382188418,1756540239081,-2498.08,0.00020258,2]
[382188419,1756540239091,-1985.5,0.00020258,2]
[382188420,1756540239101,-480.0,0.00020258,2]
[382188421,1756540239110,-1277.8,0.00020258,2]
[382188422,1756540239120,-480.0,0.00020258,2]
[382188423,1756540239129,-480.0,0.00020258,2]
[382188424,1756540239139,-1293.45,0.00020258,2]
[382188425,1756540239149,-199.83275968,0.00020258,2]
[382188426,1756540239159,-480.0,0.00020258,2]
[382188427,1756540239173,-480.0,0.00020258,2]
[382188428,1756540239183,-480.0,0.00020258,2]
[382188429,1756540239193,-2882.68,0.00020258,2]
[382188430,1756540239203,-1327.93,0.00020258,2]
[382188431,1756540239212,-480.0,0.00020258,2]
[382188432,1756540239221,-480.0,0.00020258,2]
[382188433,1756540239231,-480.0,0.00020258,2]
[382188434,1756540239241,-480.0,0.00020258,2]
[382188435,1756540239250,-480.0,0.00020258,2]
[382188436,1756540239259,-480.0,0.00020258,2]
[382188437,1756540239269,-480.0,0.00020258,2]
[382188438,1756540239278,-572.79,0.00020258,2]
[382188439,1756540239288,-500.0,0.00020258,2]
[382188440,1756540239297,-1790.32725455,0.00020271,2]
[382188441,1756540239307,-1790.32725455,0.00020385,2]